Workbook

Sheet Informasjon
B2: HØP 2020-2023 Simuleringsmodell for utarbeidelse av drifts- og investeringsbudsjett
B6: Fyll ut navn til politisk parti:

Sheet Oppsummering
B2: Oppsummering av partiets budsjettforslag 2020-2023
B3: =+Informasjon!D6 -> 0
B5: =IF(SUM(C15:F15)<>0,"NB! forslaget til driftsbudsjettet er i ubalanse. Vennligst returner til driftsbudsjettet og utfør nødvendige endringer inntil driftsbalansen viser NULL i alle 4 år.","") -> 
E7: Beløp i hele tusen kroner
B8: Drift | C8: 2020 | D8: =C8+1 -> 2021 | E8: =D8+1 -> 2022 | F8: 2023
B9: Brutto driftsramme iht rådmannens forslag | C9: =+Drift!D238 -> 12229007 | D9: =+Drift!E238 -> 12175895 | E9: =+Drift!F238 -> 12218170 | F9: =+Drift!G238 -> 12253472
B10: Netto driftsresultat iht. rådmannens forslag | C10: =+Drift!D11 -> 0.008 | D10: =+Drift!E11 -> 0.008 | E10: =+Drift!F11 -> 0.007 | F10: =+Drift!G11 -> 0.001
B12: Brutto driftsramme iht. partiets forslag (omtrentlig) | C12: =+Drift!D239 -> 12229007 | D12: =+Drift!E239 -> 12175895 | E12: =+Drift!F239 -> 12218170 | F12: =+Drift!G239 -> 12253472
B13: Netto driftsresultat iht. partiets forslag (omtrentlig) | C13: =+'Grunnlag måltall'!J28 -> 0.008261842993 | D13: =+'Grunnlag måltall'!K28 -> 0.00775945772 | E13: =+'Grunnlag måltall'!L28 -> 0.006889097693 | F13: =+'Grunnlag måltall'!M28 -> 0.001028909536
B15: =+Drift!C15 -> Sum driftsbalanse (skal være null) | C15: =+Drift!D15 -> 0 | D15: =+Drift!E15 -> 0 | E15: =+Drift!F15 -> 0 | F15: =+Drift!G15 -> 0
B17: =IF(SUM(C22:F22)<>0,"Foreslåtte endringer i investeringsbudsjettet øker investeringsnivået samlet de neste 4 årene med:","") ->  | F17: =+SUM(C22:F22) -> 0
B19: Investeringer | C19: 2020 | D19: 2021 | E19: 2022 | F19: 2023
B20: Brutto investeringer iht. rådmannens forslag | C20: =+Investering!D9 -> 1171890 | D20: =+Investering!E9 -> 1205813 | E20: =+Investering!F9 -> 1472843 | F20: =+Investering!G9 -> 1395643
B21: Brutto investeringer iht. partiets forslag | C21: =+Investering!D11 -> 1171890 | D21: =+Investering!E11 -> 1205813 | E21: =+Investering!F11 -> 1472843 | F21: =+Investering!G11 -> 1395643
B22: Endring sammenlignet med rådmannens forslag | C22: =+C21-C20 -> 0 | D22: =+D21-D20 -> 0 | E22: 0 | F22: 0
B24: Udekket | C24: =+Investering!D23 -> 0 | D24: =+Investering!E23 -> 0 | E24: =+Investering!F23 -> 0 | F24: =+Investering!G23 -> 0
B26: =IF(AND(SUM(C32:F32)<>0, F26>0),"Endringer i låneopptak medfører en økning i kommunens kapitalkostnader sammenlagt for neste 4 år på:","") ->  | F26: =SUM(C32:F32) -> 0
B28: Låneopptak og finanskostnader | C28: 2020 | D28: 2021 | E28: 2022 | F28: 2023
B29: Låneopptak iht. rådmannens forslag | C29: =+Investering!D13 -> 400784 | D29: =+Investering!E13 -> 792788 | E29: =+Investering!F13 -> 855363 | F29: =+Investering!G13 -> 1017395
B30: Låneopptak iht. partiets forslag | C30: =+Investering!D15 -> 400784 | D30: =+Investering!E15 -> 792788 | E30: =+Investering!F15 -> 855363 | F30: =+Investering!G15 -> 1017395
B31: Endring sammenlignet med rådmannens forslag | C31: =+Investering!D14 -> 0 | D31: =+Investering!E14 -> 0 | E31: =+Investering!F14 -> 0 | F31: =+Investering!G14 -> 0
B32: Endring i kapitalkostnader som følge av endring i låneopptak | C32: =+'Grunnlag finans'!C41 -> 0 | D32: =+'Grunnlag finans'!D41 -> 0 | E32: =+'Grunnlag finans'!E41 -> 0 | F32: =+'Grunnlag finans'!F41 -> 0

Sheet Investering
C2: Handlings- og økonomiplan 2020-2023 INVESTERINGER
C4: =+Informasjon!D6 -> 0
G6: Beløp i hele tusen kroner
C7: 1. Oppsummering | D7: 2020 | E7: =D7+1 -> 2021 | F7: =E7+1 -> 2022 | G7: 2023 | H7: 2020-2023
C9: Rådmannens forslag til investeringsbudsjett | D9: =+D196 -> 1171890 | E9: =+E196 -> 1205813 | F9: 1472843 | G9: 1395643 | H9: =+D9+E9+F9+G9 -> 5246189
C10: Partiets endringer- totale endringer | D10: =+D197 -> 0 | E10: =+E197 -> 0 | F10: =+F197 -> 0 | G10: =+G197 -> 0 | H10: =+D10+E10+F10+G10 -> 0
C11: Nytt forslag til investeringsbudsjett justert for partiets endringer | D11: =+D9+D10 -> 1171890 | E11: =+E9+E10 -> 1205813 | F11: =+F9+F10 -> 1472843 | G11: =+G9+G10 -> 1395643 | H11: =+D11+E11+F11+G11 -> 5246189
C13: Låneopptak iht rådmannens forslag | D13: =+D201 -> 400784 | E13: =+E201 -> 792788 | F13: 855363 | G13: 1017395 | H13: =+G13+F13+E13+D13 -> 3066330
C14: Låneopptak iht. partiet endringer | D14: =+D207 -> 0 | E14: =+E207 -> 0 | F14: =+F207 -> 0 | G14: =+G207 -> 0 | H14: =+D14+E14+F14+G14 -> 0
C15: Nytt nivå på låneopptak justert for partiet endringer | D15: =+D13+D14 -> 400784 | E15: =+E13+E14 -> 792788 | F15: =+F13+F14 -> 855363 | G15: =+G13+G14 -> 1017395 | H15: =+H13+H14 -> 3066330
C17: Overføring fra drift iht rådmannens forslag | D17: 194631 | E17: 120121 | F17: 103754 | G17: 47879 | H17: =+G17+F17+E17+D17 -> 466385
C18: Overføring fra drift iht. partiets endringer | D18: =+D204 -> 0 | E18: =+E204 -> 0 | F18: 0 | G18: 0 | H18: =+G18+F18+E18+D18 -> 0
C19: Nytt nivå på overføring fra drift justert for partiets endringer | D19: =+D17+D18 -> 194631 | E19: =+E17+E18 -> 120121 | F19: =+F17+F18 -> 103754 | G19: =+G17+G18 -> 47879 | H19: =+H17+H18 -> 466385
C21: Udekket iht. rådmannens forslag | D21: =+(D201+D202)-D196 -> 0 | E21: =+(E201+E202)-E196 -> 0 | F21: =+(F201+F202)-F196 -> 0 | G21: =+(G201+G202)-G196 -> 0 | H21: =+D21+E21+F21+G21 -> 0
C23: Udekket iht. partiets forslag | D23: =+D208 -> 0 | E23: =+E208 -> 0 | F23: =+F208 -> 0 | G23: =+G208 -> 0 | H23: =+D23+E23+F23+G23 -> 0
C26: 2. HØP 2020-2023- Investeringstabell
C27: Diverse bygg og felles investeringer
C28: Rådmannens forslag- sum diverse bygg, anlegg og felles investeringer | D28: 222032 | E28: 230350 | F28: 367430 | G28: 359180 | H28: =+G28+F28+E28+D28 -> 1178992
H29: =SUM(D29:G29) -> 0
H30: =SUM(D30:G30) -> 0
H31: 0
H32: 0
H33: 0
H34: 0
H35: 0
H36: 0
H37: 0
H38: 0
H39: 0
H40: 0
C41: Sum partiets endringer- diverse bygg og anlegg | D41: =SUM(D29:D40) -> 0 | E41: =SUM(E29:E40) -> 0 | F41: 0 | G41: 0 | H41: =SUM(H29:H40) -> 0
C42: Nytt forslag til budsjett justert for partiets endringer- diverse bygg og anlegg | D42: =+D28+D41 -> 222032 | E42: =+E28+E41 -> 230350 | F42: =+F28+F41 -> 367430 | G42: =+G28+G41 -> 359180 | H42: =+H28+H41 -> 1178992
C44: Skole
C45: Rådmannens forslag- sum skole | D45: 149500 | E45: 182400 | F45: 172000 | G45: 298000 | H45: =+G45+F45+E45+D45 -> 801900
H46: =SUM(D46:G46) -> 0
H47: =SUM(D47:G47) -> 0
H48: 0
H49: 0
H50: 0
H51: 0
H52: 0
H53: 0
H54: 0
H55: 0
H56: 0
H57: 0
C58: Sum partiets endringer- skole | D58: =SUM(D46:D57) -> 0 | E58: =SUM(E46:E57) -> 0 | F58: 0 | G58: 0 | H58: =SUM(H46:H57) -> 0
C59: Nytt forslag til budsjett justert for partiets endringer- skole | D59: =+D45+D58 -> 149500 | E59: =+E45+E58 -> 182400 | F59: =+F45+F58 -> 172000 | G59: =+G45+G58 -> 298000 | H59: =+H45+H58 -> 801900
C61: Barnehage
C62: Rådmannens forslag- sum barnehage | D62: 103800 | E62: 62000 | F62: 161000 | G62: 64000 | H62: =+G62+F62+E62+D62 -> 390800
H63: =SUM(D63:G63) -> 0
H64: =SUM(D64:G64) -> 0
H65: 0
H66: 0
H67: 0
H68: 0
H69: 0
H70: 0
H71: 0
H72: 0
H73: 0
H74: 0
C75: Sum partiets endringer- barnehage | D75: =SUM(D63:D74) -> 0 | E75: =SUM(E63:E74) -> 0 | F75: 0 | G75: 0 | H75: =SUM(H63:H74) -> 0
C76: Nytt forslag til budsjett justert for partiets endringer- barnehage | D76: =+D62+D75 -> 103800 | E76: =+E62+E75 -> 62000 | F76: =+F62+F75 -> 161000 | G76: =+G62+G75 -> 64000 | H76: =+H62+H75 -> 390800
C78: Helse og velferd (eks. bolig bygg KF)
C79: Rådmannens forslag- sum levekår | D79: 126100 | E79: 167000 | F79: 190500 | G79: 166500 | H79: =+G79+F79+E79+D79 -> 650100
H80: =SUM(D80:G80) -> 0
H81: =SUM(D81:G81) -> 0
H82: 0
H83: 0
H84: 0
H85: 0
H86: 0
H87: 0
H88: 0
H89: 0
H90: 0
H91: 0
C92: Sum partiets endringer- levekår | D92: =SUM(D80:D91) -> 0 | E92: =SUM(E80:E91) -> 0 | F92: 0 | G92: 0 | H92: =SUM(H80:H91) -> 0
C93: Nytt forslag til budsjett justert for partiets endringer- levekår | D93: =+D79+D92 -> 126100 | E93: =+E79+E92 -> 167000 | F93: 190500 | G93: =+G79+G92 -> 166500 | H93: =+H79+H92 -> 650100 | I93: 18350
C95: Idrett
C96: Rådmannens forslag- sum idrettsbygg | D96: 39600 | E96: 31000 | F96: 48750 | G96: 55500 | H96: =+G96+F96+E96+D96 -> 174850
H97: =SUM(D97:G97) -> 0
H98: =SUM(D98:G98) -> 0
H99: 0
H100: 0
H101: 0
H102: 0
H103: 0
H104: 0
H105: 0
H106: 0
H107: 0
H108: 0
H109: 0
H110: 0
C111: Sum partiets endringer- idrettsbygg | D111: =SUM(D97:D110) -> 0 | E111: =SUM(E97:E110) -> 0 | F111: 0 | G111: 0 | H111: =SUM(H97:H110) -> 0
C112: Nytt forslag til budsjett justert for partiets endringer- idrettsbygg | D112: =+D96+D111 -> 39600 | E112: =+E96+E111 -> 31000 | F112: =+F96+F111 -> 48750 | G112: =+G96+G111 -> 55500 | H112: =+H96+H111 -> 174850
C114: Vann, avløp og renovasjon
C115: Rådmannens forslag- sum vann, avløp og renovasjon | D115: =73140+80860+4100 -> 158100 | E115: =71040+84660+4100 -> 159800 | F115: =76440+91760+4100 -> 172300 | G115: =70440+95960+4100 -> 170500 | H115: =+G115+F115+E115+D115 -> 660700
H116: =SUM(D116:G116) -> 0
H117: =SUM(D117:G117) -> 0
H118: 0
H119: 0
H120: 0
H121: 0
H122: 0
H123: =+D123+E123+F123+G123 -> 0
H124: 0
H125: 0
H126: 0
H127: 0
H128: 0
H129: 0
C130: Sum partiets endringer- vann, avløp og renovasjon | D130: =SUM(D116:D129) -> 0 | E130: =SUM(E116:E129) -> 0 | F130: 0 | G130: =SUM(G116:G129) -> 0 | H130: =+H123+H124+H125+H126+H127+H128+H129 -> 0
C131: Nytt forslag til budsjett justert for partiets endringer- Vann, avløp og renovasjon | D131: =+D115+D130 -> 158100 | E131: =+E115+E130 -> 159800 | F131: =+F115+F130 -> 172300 | G131: =+G115+G130 -> 170500 | H131: =+H115+H130 -> 660700
C133: Park og vei
C134: Rådmannens forslag- sum park og vei | D134: 222475 | E134: 208575 | F134: 215575 | G134: 213775 | H134: =+G134+F134+E134+D134 -> 860400
H135: =SUM(D135:G135) -> 0
H136: =SUM(D136:G136) -> 0
H137: 0
H138: 0
H139: 0
H140: 0
H141: 0
H142: 0
H143: 0
H144: 0
H145: 0
H146: 0
H147: 0
C148: Sum partiets endringer- park og vei | D148: =SUM(D135:D147) -> 0 | E148: =SUM(E135:E147) -> 0 | F148: 0 | G148: 0 | H148: =SUM(H135:H147) -> 0
C149: Nytt forslag til budsjett justert for partiets endringer- park og vei | D149: =+D134+D148 -> 222475 | E149: =+E134+E148 -> 208575 | F149: =+F134+F148 -> 215575 | G149: =+G134+G148 -> 213775 | H149: =+H134+H148 -> 860400
C151: Kirkelig fellesråd
C152: Rådmannens forslag- sum kirkelig fellesråd | D152: 95920 | E152: 101500 | F152: 93100 | G152: 27000 | H152: =+G152+F152+E152+D152 -> 317520
H153: =SUM(D153:G153) -> 0
H154: =SUM(D154:G154) -> 0
H155: 0
H156: 0
H157: 0
H158: 0
H159: 0
H160: 0
H161: 0
H162: 0
H163: 0
H164: 0
H165: 0
C166: Sum partiets endringer- kirkelig fellesråd | D166: =SUM(D153:D165) -> 0 | E166: =SUM(E153:E165) -> 0 | F166: 0 | G166: 0 | H166: =SUM(H153:H165) -> 0
C167: Nytt forslag til budsjett justert for partiets endringer- kirkelig fellesråd | D167: =+D152+D166 -> 95920 | E167: =+E152+E166 -> 101500 | F167: =+F152+F166 -> 93100 | G167: =+G152+G166 -> 27000 | H167: =+H152+H166 -> 317520
C169: Miljø
C170: Rådmannens forslag- sum miljø | E170: 15000 | F170: 15000 | G170: 15000 | H170: =+G170+F170+E170+D170 -> 45000
H171: =SUM(D171:G171) -> 0
H172: =SUM(D172:G172) -> 0
H173: 0
H174: 0
H175: 0
H176: 0
H177: 0
C178: Sum partiets endringer- miljø | D178: =SUM(D171:D177) -> 0 | E178: =SUM(E171:E177) -> 0 | F178: 0 | G178: 0 | H178: =SUM(H171:H177) -> 0
C179: Nytt forslag til budsjett justert for partiets endringer- miljø | D179: =+D170+D178 -> 0 | E179: =+E170+E178 -> 15000 | F179: =+F170+F178 -> 15000 | G179: =+G170+G178 -> 15000 | H179: =+H170+H178 -> 45000
C181: Forvaltning
C182: Rådmannens forslag- sum forvaltning | D182: 54363 | E182: 48188 | F182: 37188 | G182: 26188 | H182: =+D182+E182+F182+G182 -> 165927
H183: =SUM(D183:G183) -> 0
H184: =SUM(D184:G184) -> 0
H185: 0
H186: 0
H187: 0
H188: 0
H189: 0
C190: Sum partiets endringer- forvaltning | D190: =SUM(D183:D189) -> 0 | E190: =SUM(E183:E189) -> 0 | F190: =SUM(F183:F189) -> 0 | G190: =SUM(G183:G189) -> 0 | H190: =SUM(H183:H189) -> 0
C191: Nytt forslag til budsjett justert for partiets endringer- miljø | D191: =+D182+D190 -> 54363 | E191: =+E182+E190 -> 48188 | F191: =+F182+F190 -> 37188 | G191: =+G182+G190 -> 26188 | H191: =+H182+H190 -> 165927
C195: Totale brutto investeringer
C196: Rådmannens forslag- totale brutto investeringer | D196: =+D182+D170+D152+D134+D115+D96+D79+D62+D45+D28 -> 1171890 | E196: =+E182+E170+E152+E134+E115+E96+E79+E62+E45+E28 -> 1205813 | F196: 1472843 | G196: 1395643 | H196: =+D196+E196+F196+G196 -> 5246189
C197: Partiets endringer- totale endringer ift. Rådmannens forslag | D197: =+D190+D178+D166+D148+D130+D111+D92+D75+D58+D41 -> 0 | E197: =+E190+E178+E166+E148+E130+E111+E92+E75+E58+E41 -> 0 | F197: 0 | G197: 0 | H197: =+D197+E197+F197+G197 -> 0
C198: Nytt forslag til budsjett justert for partiets endringer totalt | D198: =+D196+D197 -> 1171890 | E198: =+E196+E197 -> 1205813 | F198: =+F196+F197 -> 1472843 | G198: =+G196+G197 -> 1395643 | H198: =+H196+H197 -> 5246189
C200: Finansiering
C201: Rådmannens forslag låneopptak | D201: 400784 | E201: 792788 | F201: 855363 | G201: 1017395 | H201: =+G201+F201+E201+D201 -> 3066330
C202: Rådmannensforslag egenfinansiering | D202: =+D196-D201 -> 771106 | E202: =+E196-E201 -> 413025 | F202: =+F196-F201 -> 617480 | G202: =+G196-G201 -> 378248 | H202: =+D202+E202+F202+G202 -> 2179859
C203: Partiets endringer i egenfinansiering føres under:
C204: Overføringer fra drift til investering (beregnes i driftsbudsjettet) | D204: =+Drift!D225 -> 0 | E204: =+Drift!E225 -> 0 | F204: =+Drift!F225 -> 0 | G204: =+Drift!G225 -> 0 | H204: =+D204+E204+F204+G204 -> 0
C205: Salgsinntekter | H205: =+D205+E205+F205+G205 -> 0
C206: Andre tilskudd | H206: =+D206+E206+F206+G206 -> 0
C207: Partiets endring i låneopptak (beregnes automatisk) | D207: =D197-(+D204+D205+D206) -> 0 | E207: =E197-(+E204+E205+E206) -> 0 | F207: =F197-(+F204+F205+F206) -> 0 | G207: =G197-(+G204+G205+G206) -> 0 | H207: =+D207+E207+F207+G207 -> 0
C208: Udekket iht. partiets endringer | D208: =+D198-(D201+D202+D204+D205+D206+D207) -> 0 | E208: =+E198-(E201+E202+E204+E205+E206+E207) -> 0 | F208: =+F198-(F201+F202+F204+F205+F206+F207) -> 0 | G208: =+G198-(G201+G202+G204+G205+G206+G207) -> 0

Sheet Drift
C2: Handlings- og økonomiplan 2020-2023 DRIFT
C3: =+Informasjon!D6 -> 0
F4: Beløp i hele tusen kroner
D5: 2020 | E5: =D5+1 -> 2021 | F5: =E5+1 -> 2022 | G5: =F5+1 -> 2023
C8: 1. Oppsummering
C10: Brutto budsjettramme iht. rådmannnens forslag | D10: =+D238 -> 12229007 | E10: =+E238 -> 12175895 | F10: 12218170 | G10: 12253472
C11: Netto driftsresultat iht. rådmannens forslag | D11: 0.008 | E11: 0.008 | F11: 0.007 | G11: 0.001
C12: Brutto budsjettramme iht. partiets forslag | D12: =+D239 -> 12229007 | E12: =+E239 -> 12175895 | F12: 12218170 | G12: 12253472
C13: Netto driftsresultat iht. partiets forslag (omtrentlig) | D13: =+'Grunnlag måltall'!C59 -> 0.008261842993 | E13: =+'Grunnlag måltall'!D59 -> 0.00775945772 | F13: =+'Grunnlag måltall'!E59 -> 0.006889097693 | G13: =+'Grunnlag måltall'!F59 -> 0.001028909536
C15: Sum driftsbalanse (skal være null) | D15: =D242 -> 0 | E15: =E242 -> 0 | F15: =F242 -> 0 | G15: =G242 -> 0
C18: 2. HØP 2020-2023- driftsrammetabell
C21: Oppvekst og utdanning
C24: Sum brutto endringer iht. rådmannens forslag | D24: 150559 | E24: =(E25-D25)+D24 -> 121452 | F24: =(F25-E25)+E24 -> 111054 | G24: =(G25-F25)+F24 -> 117848
C25: Brutto budsjettramme iht. rådmannens forslag | D25: 4125272 | E25: 4096165 | F25: 4085767 | G25: 4092561
C26: Legg inn dine endringer under:
C42: Sum endring iht. partiets forslag | D42: =SUM(D27:D41) -> 0 | E42: =SUM(E27:E41) -> 0 | F42: =SUM(F27:F41) -> 0 | G42: =SUM(G27:G41) -> 0
C43: Ny budsjettramme iht. partiets forslag | D43: =+D25+D42 -> 4125272 | E43: =+E25+E42 -> 4096165 | F43: =+F25+F42 -> 4085767 | G43: =+G25+G42 -> 4092561
C48: Helse og velferd
C51: Sum brutto endringer iht. rådmannens forslag | D51: -210000 | E51: =(E52-D52)+D51 -> -197396 | F51: =(F52-E52)+E51 -> -184446 | G51: -168246
C52: Brutto budsjettramme iht. rådmannens forslag | D52: 3740961 | E52: 3753565 | F52: 3766515 | G52: 3782715
C53: Legg inn dine endringer under:
C69: Sum endring iht. partiets forslag | D69: =SUM(D54:D68) -> 0 | E69: =SUM(E54:E68) -> 0 | F69: =SUM(F54:F68) -> 0 | G69: =SUM(G54:G68) -> 0
C70: Ny budsjettramme iht. partiets forslag | D70: =+D52+D69 -> 3740961 | E70: =+E52+E69 -> 3753565 | F70: =+F52+F69 -> 3766515 | G70: =+G52+G69 -> 3782715
C75: By- og samfunnsplanlegging
C78: Sum brutto endringer iht. rådmannens forslag | D78: 347 | E78: =(E79-D79)+D78 -> 247 | F78: =(F79-E79)+E78 -> -253 | G78: -253
C79: Brutto budsjettramme iht. rådmannens forslag | D79: 123385 | E79: 123285 | F79: 122785 | G79: 122785
C80: Legg inn dine endringer under:
C91: Sum endring iht. partiets forslag | D91: =SUM(D81:D90) -> 0 | E91: =SUM(E81:E90) -> 0 | F91: =SUM(F81:F90) -> 0 | G91: =SUM(G81:G90) -> 0
C92: Ny budsjettramme iht. partiets forslag | D92: =+D79+D91 -> 123385 | E92: =+E79+E91 -> 123285 | F92: =+F79+F91 -> 122785 | G92: =+G79+G91 -> 122785
C97: Bymiljø og utbygging
C100: Sum brutto endringer iht. rådmannens forslag | D100: 64610 | E100: =(E101-D101)+D100 -> 79140 | F100: =(F101-E101)+E100 -> 111760 | G100: 136829
C101: Brutto budsjettramme iht. rådmannens forslag | D101: 1700898 | E101: 1715428 | F101: 1748048 | G101: 1773117
C102: Legg inn dine endringer under:
C113: Sum endring iht. partiets forslag | D113: =SUM(D103:D112) -> 0 | E113: =SUM(E103:E112) -> 0 | F113: =SUM(F103:F112) -> 0 | G113: =SUM(G103:G112) -> 0
C114: Ny budsjettramme iht. partiets forslag | D114: =+D101+D113 -> 1700898 | E114: =+E101+E113 -> 1715428 | F114: =+F101+F113 -> 1748048 | G114: =+G101+G113 -> 1773117
C119: Innbygger- og samfunnskontakt
C122: Sum brutto endringer iht. rådmannens forslag | D122: 38218 | E122: =(E123-D123)+D122 -> 34599 | F122: =(F123-E123)+E122 -> 32597 | G122: 32597
C123: Brutto budsjettramme iht. rådmannens forslag | D123: 295960 | E123: 292341 | F123: 290339 | G123: 290339
C124: Legg inn dine endringer under:
C135: Sum endring iht. partiets forslag | D135: =SUM(D125:D134) -> 0 | E135: =SUM(E125:E134) -> 0 | F135: =SUM(F125:F134) -> 0 | G135: =SUM(G125:G134) -> 0
C136: Ny budsjettramme iht. partiets forslag | D136: =+D123+D135 -> 295960 | E136: =+E123+E135 -> 292341 | F136: =+F123+F135 -> 290339 | G136: =+G123+G135 -> 290339
C141: Innovasjon og støttetjenester
C144: Sum brutto endringer iht. rådmannens forslag | D144: 17419 | E144: =(E145-D145)+D144 -> 9302 | F144: =(F145-E145)+E144 -> 9302 | G144: 9302
C145: Brutto budsjettramme iht. rådmannens forslag | D145: 336982 | E145: 328865 | F145: 328865 | G145: 328865
C146: Legg inn dine endringer under:
C157: Sum endring iht. partiets forslag | D157: =SUM(D147:D156) -> 0 | E157: =SUM(E147:E156) -> 0 | F157: =SUM(F147:F156) -> 0 | G157: =SUM(G147:G156) -> 0
C158: Ny budsjettramme iht. partiets forslag | D158: =+D145+D157 -> 336982 | E158: =+E145+E157 -> 328865 | F158: =+F145+F157 -> 328865 | G158: =+G145+G157 -> 328865
C163: Økonomi og organisasjon
C166: Sum brutto endringer iht. rådmannens forslag | D166: 4525 | E166: =(E167-D167)+D166 -> 4525 | F166: =(F167-E167)+E166 -> 4525 | G166: 4525
C167: Brutto budsjettramme iht. rådmannens forslag | D167: 90333 | E167: 90333 | F167: 90333 | G167: 90333
C168: Legg inn dine endringer under:
C179: Sum endring iht. partiets forslag | D179: =SUM(D169:D178) -> 0 | E179: =SUM(E169:E178) -> 0 | F179: =SUM(F169:F178) -> 0 | G179: =SUM(G169:G178) -> 0
C180: Ny budsjettramme iht. partiets forslag | D180: =+D167+D179 -> 90333 | E180: =+E167+E179 -> 90333 | F180: =+F167+F179 -> 90333 | G180: =+G167+G179 -> 90333
C185: Felles utgifter
C188: Sum endring iht. rådmannens forslag | D188: 124696 | E188: =(E189-D189)+D188 -> 85393 | F188: =(F189-E189)+E188 -> 94998 | G188: 82237
C189: Budsjettramme iht. rådmannens forslag | D189: 1815216 | E189: 1775913 | F189: 1785518 | G189: 1772757
C190: Legg inn dine endringer under:
C202: Sum endring iht. partiets forslag | D202: =+D191+D196+D197+D198+D199+D200+D201+D232+D233+D192+D193+D194+D195 -> 0 | E202: =+E191+E196+E197+E198+E199+E200+E201+E232+E233+E192+E193+E194+E195 -> 0 | F202: 0 | G202: 0
C203: Ny budsjettramme iht. partiets forslag | D203: =+D189+D202 -> 1815216 | E203: =+E189+E202 -> 1775913 | F203: 1785518 | G203: 1772757
C207: Felles inntekter
C211: Legg inn dine endringer under:
C212: Skatt fra inntekt og formue
C213: Rammetilskudd
C214: Eiendomsskatt
C222: Legg inn dine endringer i disposisjonsfond under:
C223: Disposisjonsfond
C225: Endring i overføring fra drift til investering (klikk på knappen under) | D225: 0 | E225: 0 | F225: 0 | G225: 0
C228: Sum endringer i felles inntekter og utgifter iht. partiets forslag | D228: =ROUND(+D213+D214+D219+D202+D212+D220+D221+D223+D225+D215+D216+D217+D218,-1) -> 0 | E228: =ROUND(+E213+E214+E219+E202+E212+E220+E221+E223+E225+E215+E216+E217+E218,-1) -> 0 | F228: 0 | G228: 0
C231: Endringer i låneopptak i investeringsbudsjettet samt endringer i overføringer fra drift har medført følgende endringer i renter og avdrag:
C232: Renter, endret låneopptak (beregnes av modellen) | D232: =+'Grunnlag finans'!C36 -> 0 | E232: =+'Grunnlag finans'!D36 -> 0 | F232: =+'Grunnlag finans'!E36 -> 0 | G232: =+'Grunnlag finans'!F36 -> 0
C233: Endring avdragsbetalinger (beregnes av modellen) | D233: =+'Grunnlag finans'!C37 -> 0 | E233: =+'Grunnlag finans'!D37 -> 0 | F233: =+'Grunnlag finans'!E37 -> 0 | G233: =+'Grunnlag finans'!F37 -> 0
C238: Brutto driftsramme iht. rådmannens forslag | D238: =+D189+D167+D145+D123+D101+D79+D52+D25 -> 12229007 | E238: =+E189+E167+E145+E123+E101+E79+E52+E25 -> 12175895 | F238: 12218170 | G238: 12253472
C239: Ny brutto driftsramme iht. partiets forslag | D239: =+D180+D158+D203+D136+D114+D92+D70+D43+D228 -> 12229007 | E239: =+E180+E158+E203+E136+E114+E92+E70+E43+E228 -> 12175895 | F239: 12218170 | G239: 12253472
C242: Sum driftsbalanse (skal være null) | D242: =ROUND(+D42+D69+D91+D113+D135+D157+D179+D228,-1) -> 0 | E242: =ROUND(+E42+E69+E91+E113+E135+E157+E179+E228,-1) -> 0 | F242: 0 | G242: 0
H305: *

Sheet Grunnlag finans (hidden)
B10: Låneopptak
B14: Rådmannens forslag: | C14: 2020 | D14: =C14+1 -> 2021 | E14: =D14+1 -> 2022 | F14: =E14+1 -> 2023
B15: Ordinært låneopptak til investeringer | C15: =+Investering!D201 -> 400784 | D15: =+Investering!E201 -> 792788 | E15: =+Investering!F201 -> 855363 | F15: =+Investering!G201 -> 1017395
B16: Startlån
B17: Låneopptak til videre utlån (ikke startlån)
B18: Sum låneopptak rådmannens forslag | C18: =+C15+C16+C17 -> 400784 | D18: =+D15+D16+D17 -> 792788 | E18: 855363 | F18: 1017395
B20: Partiets forslag til endringer i låneopptak: | C20: 2020 | D20: =C20+1 -> 2021 | E20: =D20+1 -> 2022 | F20: =E20+1 -> 2023
B21: Iht. budsjettforslag fra partiet | C21: =+Investering!D207 -> 0 | D21: =+Investering!E207 -> 0 | E21: =+Investering!F207 -> 0 | F21: =+Investering!G207 -> 0
B22: Startlån
B23: Låneopptak til videre utlån (ikke startlån)
B24: Sum endringer i låneopptak per år iht. partiets forslag | C24: =+C21+C22+C23 -> 0 | D24: =+D21+D22+D23 -> 0 | E24: =+E21+E22+E23 -> 0 | F24: 0
B26: Nytt låneopptak per år | C26: =+C24+C18 -> 400784 | D26: =+D24+D18 -> 792788 | E26: 855363 | F26: 1017395
B30: Endring i finanskostnader
B32: Endring i finanskostnader | C32: 2020 | D32: =C32+1 -> 2021 | E32: =D32+1 -> 2022 | F32: 2023
B33: Rentesats | C33: 0.026 | D33: 0.026 | E33: 0.0255 | F33: 0.0255
B34: Nedbetalingstid (år) | C34: 30 | D34: 30 | E34: 30 | F34: 30
B35: Nytt lån | C35: =+Investering!D207 -> 0 | D35: =+Investering!E207 -> 0 | E35: =+Investering!F207 -> 0 | F35: =+Investering!G207 -> 0
B36: Renter | C36: =+C35*C33 -> 0 | D36: =+(C39+D35)*D33 -> 0 | E36: =+(D39+E35)*E33 -> 0 | F36: =+(E39+F35)*F33 -> 0
B37: Avdrag | C37: =+C35/C34 -> 0 | D37: =+(C35+D35)/D34 -> 0 | E37: =+(C35+D35+E35)/E34 -> 0 | F37: =+(C35+D35+E35+F35)/F34 -> 0
B38: Sum lån 1.januar | C38: =+C35 -> 0 | D38: =+C39+D35 -> 0 | E38: =+D39+E35 -> 0 | F38: =+E39+F35 -> 0
B39: Sum lån 31.desember | C39: =+C38-C37 -> 0 | D39: =+D38-D37 -> 0 | E39: =+E38-E37 -> 0 | F39: =+F38-F37 -> 0
B41: Sum endring finanskostnader | C41: =+C36+C37 -> 0 | D41: =+D36+D37 -> 0 | E41: =+E36+E37 -> 0 | F41: =+F36+F37 -> 0

Sheet Grunnlag måltall (hidden)
B2: Investeringer | C2: 2020 | D2: 2021 | E2: 2022 | F2: 2023
B3: Diverse bygg og felles investeringer | C3: =+Investering!D42 -> 222032 | D3: =+Investering!E42 -> 230350 | E3: =+Investering!F42 -> 367430 | F3: =+Investering!G42 -> 359180
B4: =+Investering!C44 -> Skole | C4: =+Investering!D59 -> 149500 | D4: =+Investering!E59 -> 182400 | E4: =+Investering!F59 -> 172000 | F4: =+Investering!G59 -> 298000
B5: =+Investering!C61 -> Barnehage | C5: =+Investering!D76 -> 103800 | D5: =+Investering!E76 -> 62000 | E5: =+Investering!F76 -> 161000 | F5: =+Investering!G76 -> 64000
B6: Helse og velferd (eks. Bolig bygg KF) | C6: =+Investering!D93 -> 126100 | D6: =+Investering!E93 -> 167000 | E6: =+Investering!F93 -> 190500 | F6: =+Investering!G93 -> 166500
B7: Idrett | C7: =+Investering!D112 -> 39600 | D7: =+Investering!E112 -> 31000 | E7: =+Investering!F112 -> 48750 | F7: =+Investering!G112 -> 55500
B8: VAR | C8: =+Investering!D131 -> 158100 | D8: =+Investering!E131 -> 159800 | E8: =+Investering!F131 -> 172300 | F8: =+Investering!G131 -> 170500
B9: Park og vei | C9: =+Investering!D149 -> 222475 | D9: =+Investering!E149 -> 208575 | E9: =+Investering!F149 -> 215575 | F9: =+Investering!G149 -> 213775
B10: Kirkebygg | C10: =+Investering!D152 -> 95920 | D10: =+Investering!E152 -> 101500 | E10: =+Investering!F152 -> 93100 | F10: =+Investering!G152 -> 27000
B11: Miljø | C11: =+Investering!D170 -> 0 | D11: =+Investering!E170 -> 15000 | E11: =+Investering!F170 -> 15000 | F11: =+Investering!G170 -> 15000
B12: Forvaltning | C12: =+Investering!D182 -> 54363 | D12: =+Investering!E182 -> 48188 | E12: =+Investering!F182 -> 37188 | F12: =+Investering!G182 -> 26188
B14: Drift | C14: 2020 | D14: 2021 | E14: 2022 | F14: 2023
B15: =+Drift!C21 -> Oppvekst og utdanning | C15: =+Drift!D43 -> 4125272 | D15: =+Drift!E43 -> 4096165 | E15: =+Drift!F43 -> 4085767 | F15: =+Drift!G43 -> 4092561
B16: =+Drift!C48 -> Helse og velferd | C16: =+Drift!D70 -> 3740961 | D16: =+Drift!E70 -> 3753565 | E16: =+Drift!F70 -> 3766515 | F16: =+Drift!G70 -> 3782715
B17: =+Drift!C75 -> By- og samfunnsplanlegging | C17: =+Drift!D92 -> 123385 | D17: =+Drift!E92 -> 123285 | E17: =+Drift!F92 -> 122785 | F17: =+Drift!G92 -> 122785
B18: =+Drift!C97 -> Bymiljø og utbygging | C18: =+Drift!D101 -> 1700898 | D18: =+Drift!E101 -> 1715428 | E18: =+Drift!F101 -> 1748048 | F18: =+Drift!G101 -> 1773117
B19: =+Drift!C119 -> Innbygger- og samfunnskontakt | C19: =+Drift!D123 -> 295960 | D19: =+Drift!E123 -> 292341 | E19: =+Drift!F123 -> 290339 | F19: =+Drift!G123 -> 290339
B20: =Drift!C141 -> Innovasjon og støttetjenester | C20: =+Drift!D145 -> 336982 | D20: =+Drift!E145 -> 328865 | E20: =+Drift!F145 -> 328865 | F20: =+Drift!G145 -> 328865
B21: =Drift!C163 -> Økonomi og organisasjon | C21: =+Drift!D167 -> 90333 | D21: =+Drift!E167 -> 90333 | E21: =+Drift!F167 -> 90333 | F21: =+Drift!G167 -> 90333
B22: =Drift!C185 -> Felles utgifter | C22: =+Drift!D189 -> 1815216 | D22: =+Drift!E189 -> 1775913 | E22: =+Drift!F189 -> 1785518 | F22: =+Drift!G189 -> 1772757
C23: =SUM(C15:C22) -> 12229007 | D23: =SUM(D15:D22) -> 12175895 | E23: =SUM(E15:E22) -> 12218170 | F23: =SUM(F15:F22) -> 12253472
B25: Indikator | C25: 2013 | D25: 2014 | E25: 2015 | F25: 2016 | G25: 2017 | H25: 2018 | I25: 2019 | J25: 2020 | K25: 2021 | L25: 2022 | M25: 2023
B26: Egenfinansiering | C26: 0.42 | D26: 0.47 | E26: 0.45 | F26: 0.52 | G26: 0.63 | H26: 0.57 | I26: 0.37 | J26: =1-('Grunnlag finans'!C26/Investering!D198) -> 0.6580020309 | K26: =1-('Grunnlag finans'!D26/Investering!E198) -> 0.3425282361 | L26: =1-('Grunnlag finans'!E26/Investering!F198) -> 0.4192435989 | M26: =1-('Grunnlag finans'!F26/Investering!G198) -> 0.2710205977
B27: Måltall > 50 % | C27: 0.5 | D27: 0.5 | E27: 0.5 | F27: 0.5 | G27: 0.5 | H27: 0.5 | I27: 0.5 | J27: 0.5 | K27: 0.5 | L27: 0.5 | M27: 0.5
B28: Netto driftsresultat | C28: 0.01852431925 | D28: -0.01207512697 | E28: 0.03265214233 | F28: 0.04956557964 | G28: 0.04400459724 | H28: -0.002453250395 | I28: 0.011 | J28: =C59 -> 0.008261842993 | K28: =D59 -> 0.00775945772 | L28: 0.006889097693 | M28: 0.001028909536
B29: Måltall > 3 % | C29: 0.03 | D29: 0.03 | E29: 0.03 | F29: 0.03 | G29: 0.03 | H29: 0.03 | I29: 0.03 | J29: 0.03 | K29: 0.03 | L29: 0.03 | M29: 0.03
B30: Gjeldsgrad | C30: 0.558 | D30: 0.605 | E30: 0.608 | F30: 0.6073113539 | G30: 0.6182518888 | H30: 0.6242297725 | I30: 0.714 | J30: =C36 -> 0.7164923513 | K30: =D36 -> 0.7724707516 | L30: 0.8383019131 | M30: 0.9038569548
B31: Måltall < 60 % | C31: 0.6 | D31: 0.6 | E31: 0.6 | F31: 0.6 | G31: 0.6 | H31: 0.6 | I31: 0.6 | J31: 0.6 | K31: 0.6 | L31: 0.6 | M31: 0.6
B33: Gjeldsgrad | C33: 2020 | D33: 2021 | E33: 2022 | F33: 2023
B34: Driftsinntekter | C34: =+C53 -> 10955909 | D34: =+D53 -> 11000511 | E34: 11047020 | F34: 11092326
B35: Gjeldsnivå for bykassen ekskl. startlån | C35: =7849825+'Grunnlag finans'!C39 -> 7849825 | D35: =8497573+'Grunnlag finans'!D39 -> 8497573 | E35: =9260738+'Grunnlag finans'!E39 -> 9260738 | F35: =10025876+'Grunnlag finans'!F39 -> 10025876
B36: Gjeldsgrad (oppdateres automatisk) | C36: =+C35/C34 -> 0.7164923513 | D36: =+D35/D34 -> 0.7724707516 | E36: =+E35/E34 -> 0.8383019131 | F36: =+F35/F34 -> 0.9038569548
B38: Netto driftsresultat
B39: Rådmannensforslag | C39: 2020 | D39: 2021 | E39: 2022 | F39: 2023
B40: Driftsinntekter rådmannens forslag | C40: 10955909 | D40: 11000511 | E40: 11047020 | F40: 11092326
B41: Driftsutgifter rådmannens forslag | C41: 11006290 | D41: 11021036 | E41: 11051379 | F41: 11122445
B42: Brutto driftsresultat | C42: =+C40-C41 -> -50381 | D42: =+D40-D41 -> -20525 | E42: -4359 | F42: -30119
B43: Resultat eksterne finanstransaksjoner | C43: -188357 | D43: -225586 | E43: -253479 | F43: -294776
B44: Motpost avskrivninger | C44: 329254 | D44: 331469 | E44: 333942 | F44: 336308
B45: Nettodriftsresultat | C45: =+C42+C43+C44 -> 90516 | D45: =+D42+D43+D44 -> 85358 | E45: 76104 | F45: 11413
B46: Nettodriftsresultat i % | C46: =+C45/C40 -> 0.008261842993 | D46: =+D45/D40 -> 0.00775945772 | E46: 0.006889097693 | F46: 0.001028909536
B49: Endringer | C49: 2020 | D49: 2021 | E49: 2022 | F49: 2023
B50: Politiske endringer i utgifter ift. rådmannens forslag | C50: =+Drift!D42+Drift!D69+Drift!D91+Drift!D113+Drift!D135+Drift!D179+Drift!D202 -> 0 | D50: =+Drift!E42+Drift!E69+Drift!E91+Drift!E113+Drift!E135+Drift!E179+Drift!E202 -> 0 | E50: =+Drift!F42+Drift!F69+Drift!F91+Drift!F113+Drift!F135+Drift!F179+Drift!F202 -> 0 | F50: =+Drift!G42+Drift!G69+Drift!G91+Drift!G113+Drift!G135+Drift!G179+Drift!G202 -> 0
B51: Politiske endringer i inntekter iht. rådmannens forslag | C51: =SUM(Drift!D212:D221) -> 0 | D51: =SUM(Drift!E212:E221) -> 0 | E51: =SUM(Drift!F212:F221) -> 0 | F51: =SUM(Drift!G212:G221) -> 0
B53: Driftsinntekter etter politiske endringer | C53: =C40-C51 -> 10955909 | D53: =D40-D51 -> 11000511 | E53: 11047020 | F53: 11092326
B54: Driftutgifter etter politiske endringer | C54: =+C41+C50 -> 11006290 | D54: =+D41+D50 -> 11021036 | E54: 11051379 | F54: 11122445
B55: Brutto driftsresultat etter politiske endringer | C55: =+C53-C54 -> -50381 | D55: =+D53-D54 -> -20525 | E55: -4359 | F55: -30119
B56: Resultat eksterne finanstransaksjoner | C56: =C43 -> -188357 | D56: =D43 -> -225586 | E56: -253479 | F56: -294776
B57: Motpost avskrivninger | C57: =C44 -> 329254 | D57: =D44 -> 331469 | E57: 333942 | F57: 336308
B58: Nettodriftsresultat (etter politiske endringer) | C58: =+C55+C56+C57 -> 90516 | D58: =+D55+D56+D57 -> 85358 | E58: 76104 | F58: 11413
B59: Nettodriftsresultat (etter politiske endringer) | C59: =+C58/C53 -> 0.008261842993 | D59: =+D58/D53 -> 0.00775945772 | E59: 0.006889097693 | F59: 0.001028909536
